Cogmind - Beta 17.1 @@@ ROGUE MODE // 2026.08.30 @ 00:22:14 Player: Somberlain Result: Self-destructed Performance ------------- Evolutions (1) 500 Regions Visited (2) 400 Robots Destroyed (12) 60 Value Destroyed (122) 122 Prototype IDs (2) 40 Alien Tech Used (0) 0 Bonus (0) 0 TOTAL SCORE: 1122 Bonus ------- None Cogmind --------- Core Integrity 263/400 Matter 296/300 Energy 65/250 System Corruption 0% Temperature Cool (45) Movement Core (300) Ox5 Location -9/Materials Parts ------- > --- POWER (1) -------- Ion Engine > --- PROPULSION (2) --- (None) > --- UTILITY (4) ------ Medium Storage Unit ECM Suite > --- WEAPON (2) ------- (None) > --- INVENTORY (10) --- (None) Peak State ------------ > --- POWER ------------ Ion Engine > --- PROPULSION ------- Aluminum Leg Aluminum Leg > --- UTILITY ---------- Small Storage Unit ECM Suite > --- WEAPON ----------- Medium Laser Small Laser > --- INVENTORY -------- Light Ion Engine [Rating: 7] Favorites ----------- Power Ion Engine Engine Ion Engine Propulsion Flight Unit Leg Aluminum Leg Wheel Compact Wheel Flight Unit Flight Unit Utility ECM Suite Device ECM Suite Storage Small Storage Unit Weapon Small Laser Energy Gun Small Laser Build | -11 -10 -9 ------- Run | Yrd Mat Mat Slots Evolved 2 | . . 2 Power . | . . . Propulsion . | . . . Utility 2 | . . 2 Weapon . | . . . Parts Attached 18 | 7 9 2 Power 4 | 1 2 1 Engine 4 | 1 2 1 Core . | . . . Reactor . | . . . Propulsion 7 | 3 4 . Treads . | . . . Leg 2 | 2 . . Wheel 1 | 1 . . Hover . | . . . Flight 4 | . 4 . Utility 3 | 1 1 1 Device 1 | . 1 . Storage 2 | 1 . 1 Processor . | . . . Hackware . | . . . Protection . | . . . Artifact . | . . . Weapon 4 | 2 2 . Energy Gun 4 | 2 2 . Energy Cannon . | . . . Ballistic Gun . | . . . Ballistic Cannon . | . . . Launcher . | . . . Special Weapon . | . . . Impact Weapon . | . . . Slashing Weapon . | . . . Piercing Weapon . | . . . Special Melee Weapon . | . . . Unidentified Prototypes . | . . . Parts Lost 7 | . 1 6 Power 1 | . . 1 Propulsion 4 | . 1 3 Utility . | . . . Weapon 2 | . . 2 Highest Loss Streak 6 | . 1 6 To Critical Strikes 1 | . . 1 Average Backups 1 | . 2 2 Power . | . . . Propulsion . | . 1 1 Utility . | . . . Weapon . | . . . Tool/Special . | . . . Unused Backups . | . . . Power . | . . . Propulsion . | . . . Utility . | . . . Weapon . | . . . Tool/Special . | . . . Average Slot Usage (%) 81 | . 86 66 Engine 13 | . 14 11 Leg 9 | . 11 4 Flight 16 | . 16 17 Device 10 | . 9 11 Storage 5 | . 6 3 Energy Gun 25 | . 28 20 Peak Build Rating 7 | 6 7 7 Average Rating 5 | 3 6 6 On Entrance 4 | . 6 6 Avg Prop Armor Cover (%) 4 | . . 4 Naked Turns . | . . . Heaviest Build 20 | 13 15 20 Greatest Support 20 | 20 20 10 Greatest Overweight (x) 4 | 4 1 1 Average Overweight (x) . | 2 . . Largest Inventory Capacity 10 | 8 8 10 Average Capacity 6 | 7 6 6 Most Carried 5 | 2 5 4 Average Carried 1 | . 2 2 Final Capacity 10 | 8 5 10 Final Carried 4 | . 4 . Class Distribution -------------------- 100% | Mutant Dominant Class ---------------- Mutant | -10/Materials Mutant | -9/Materials Resources | -11 -10 -9 ----------- Run | Yrd Mat Mat Matter Collected 389 | 282 69 38 Remotely . | . . . Salvage Created 235 | 61 107 67 Parts 19 | . 13 6 Haulers Intercepted . | . . . Recyclers Shooed 1 | . . 1 Parts Field Recycled . | . . . Retrieved Matter . | . . . Parts Self-Destructed . | . . . Prevented . | . . . Parts Restored . | . . . Kills | -11 -10 -9 ------- Run | Yrd Mat Mat Combat Hostiles Destroyed 10 | . 6 4 Guns 9 | . 5 4 Classes Destroyed 3 | 1 2 . Recycler 1 | 1 . . Watcher 1 | . 1 . Swarmer 10 | . 6 4 Best Kill Streak 4 | 1 3 4 Combat Bots Only 4 | . 3 4 Max Kills in Single Turn 1 | 1 1 1 Gunslinging . | . . . Exploded . | . . . Melee . | . . . Uniques/NPCs Destroyed . | . . . Combat | -11 -10 -9 -------- Run | Yrd Mat Mat Hostile Shots Fired 124 | . 49 75 Missed 46 | . 21 25 Hits 78 | . 28 50 Projectile 78 | . 28 50 Critical Strikes 2 | . . 2 Damage Taken 692 | . 217 475 Core 177 | . 40 137 Absorbed by Shields . | . . . Core Remaining (%) 92 | 100 84 . Volleys Fired 37 | 7 16 14 Largest 2 | 2 2 2 Hottest 90 | 90 90 90 Shots Fired 74 | 14 32 28 Gun 74 | 14 32 28 Cannon . | . . . Launcher . | . . . Special . | . . . Kinetic . | . . . Thermal 74 | 14 32 28 Explosive . | . . . Electromagnetic . | . . . Robot Hit Streak 4 | 3 4 4 Robot Miss Streak 4 | 1 4 3 Penetration Max . | . . . Secondary Targets 2 | . 1 1 Max Gunslinging Chain 1 | . 1 1 Shots Hit Robots 40 | 9 16 15 Core Hits 13 | 2 6 5 Critical Kills . | . . . Critical Parts Destroyed . | . . . Critical Strikes 1 | . 1 . Burn 1 | . 1 . Melee Attacks . | . . . Impact . | . . . Slashing . | . . . Piercing . | . . . Sneak Attacks . | . . . Combat Hostiles . | . . . Follow-up Attacks . | . . . Damage Inflicted 477 | 110 193 174 Guns 475 | 110 193 172 Cannons . | . . . Explosions . | . . . Melee . | . . . Ramming 2 | . . 2 Kinetic . | . . . Thermal 475 | 110 193 172 Explosive . | . . . Electromagnetic . | . . . Impact . | . . . Slashing . | . . . Piercing . | . . . Highest Corruption . | . . . Average Corruption . | . . . Corruption Purged . | . . . Corruption Blocked . | . . . Overload Shots . | . . . Overflow Damage . | . . . Projectiles . | . . . Explosions . | . . . Melee . | . . . Knockbacks . | . . . Impact . | . . . Kinetic . | . . . Secondary . | . . . Self-Inflicted Damage . | . . . Shots . | . . . Rammed . | . . . Targets Rammed 3 | . . 3 Kicked 3 | . . 3 Crushed . | . . . Highest Temperature 285 | 110 285 247 Average Temperature 114 | 41 109 156 Received Heat Transfer 93 | . . 93 Siege Activations . | . . . Martial Activations . | . . . Shielding Activations . | . . . Robots Disrupted . | . . . Combat Hostiles . | . . . Robots Corrupted . | . . . Combat Hostiles . | . . . Parts Fried . | . . . Impact Corruptions . | . . . Robots Melted 1 | . 1 . Combat Hostiles 1 | . 1 . Parts Melted 1 | . 1 . Heat Transferred 1314 | 285 582 447 Parts Sabotaged . | . . . Parts Stolen . | . . . Parts Stripped . | . . . Power Chain Reactions . | . . . Alert | -11 -10 -9 ------- Run | Yrd Mat Mat Maximum Alert Level . | . . . Low Security (%) 100 | 100 100 100 Level 1 . | . . . Level 2 . | . . . Level 3 . | . . . Level 4 . | . . . Level 5 . | . . . High Security . | . . . Max Security . | . . . Peak Influence 70 | 5 70 60 Initial 12 | . . 12 Average 10 | . 12 17 Influence Increases 256 | 5 161 90 Destroy 0b10 Robot/C 200 | . 120 80 Destroy 0b10 Robot/NC 10 | 5 5 . Destroy Leader 32 | . 22 10 Successful Hack 14 | . 14 . Influence Decreases 246 | 5 131 110 Entered New Map 18 | . . 18 Time Decay 98 | 5 61 32 Lost Part 70 | . 10 60 Purge Threat 60 | . 60 . Squads Dispatched . | . . . Investigation . | . . . Extermination . | . . . Reinforcement . | . . . Assault . | . . . Garrison . | . . . Intercept . | . . . Searches Triggered . | . . . Construction Impeded . | . . . Haulers Reinforced . | . . . Active Scanning Responses . | . . . Cargo Convoy Interrupts . | . . . Stealth | -11 -10 -9 --------- Run | Yrd Mat Mat Distress Signals 1 | . . 1 Communications Jammed . | . . . Distress Signals . | . . . Times Spotted 33 | . 14 19 Peak Tracking Total 8 | . 4 8 Tactical Retreats 5 | . 1 4 ECM-based Alert Blocks 17 | . 2 15 Traps | -11 -10 -9 ------- Run | Yrd Mat Mat Traps Triggered . | . . . Indirectly . | . . . Trap Hack Attempts . | . . . Triggered . | . . . Disarmed . | . . . Reprogrammed . | . . . Reused . | . . . Traps Extracted . | . . . Installed . | . . . Triggered . | . . . Machines | -11 -10 -9 ---------- Run | Yrd Mat Mat Machines Disabled . | . . . Max in Single Turn . | . . . Machines Repaired . | . . . Machines Dismantled . | . . . Machines Sabotaged . | . . . Overloaded Fab Kills . | . . . Hacking | -11 -10 -9 --------- Run | Yrd Mat Mat Machines Accessed 6 | . 4 2 Terminals 6 | . 4 2 Fabricators . | . . . Repair Stations . | . . . Recycling Units . | . . . Scanalyzers . | . . . Garrison Access . | . . . Total Hacks 17 | . 13 4 Successful 7 | . 6 1 Failed 10 | . 7 3 Catastrophic 3 | . 1 2 Database Lockouts . | . . . Manual 14 | . 10 4 Terminals 17 | . 13 4 Fabricators . | . . . Repair Stations . | . . . Recycling Units . | . . . Scanalyzers . | . . . Garrison Access . | . . . Terminal Hacks 7 | . 6 1 Prototype ID Bank 1 | . 1 . Branch Access Points 1 | . 1 . Alert Level 2 | . 1 1 Unreport Threat 2 | . 2 . Registered Components 1 | . 1 . Fabricator Hacks . | . . . Repair Station Hacks . | . . . Recycling Unit Hacks . | . . . Scanalyzer . | . . . Garrison Access Hacks . | . . . Unauthorized Hacks . | . . . Terminals . | . . . Fabricators . | . . . Repair Stations . | . . . Recycling Units . | . . . Scanalyzers . | . . . Garrison Access . | . . . Data Cores Recovered . | . . . Used . | . . . Hacking Detections 5 | . 3 2 Full Trace Events . | . . . Feedback Events . | . . . Feedback Blocked . | . . . Robot Schematics Acquired . | . . . Robots Built . | . . . Authchips . | . . . Time . | . . . Total Robot Build Rating . | . . . Part Schematics Acquired . | . . . Parts Built . | . . . Authchips . | . . . Time . | . . . Total Part Build Rating . | . . . Part Studies Acquired . | . . . Parts Repaired . | . . . Time . | . . . Parts Recycled . | . . . Recycled Matter . | . . . Retrieved Matter . | . . . Retrieved Components . | . . . Parts Scanalyzed . | . . . Part Schematics Acquired . | . . . Parts Damaged . | . . . Bothacking | -11 -10 -9 ------------ Run | Yrd Mat Mat Used RIF Installer . | . . . Robots Hacked . | . . . Non-combat . | . . . Combat . | . . . Robot Hacks Applied . | . . . Relay Couplers Released . | . . . Fabnet Peak Effective % . | . . . Robots Rewired . | . . . Allies Hacked . | . . . Hacks Repelled . | . . . Allies | -11 -10 -9 -------- Run | Yrd Mat Mat Total Allies . | . . . Largest Group . | . . . Highest-Rated Group . | . . . Highest-Rated Ally . | . . . Total Orders . | . . . Ally Attacks . | . . . Total Damage . | . . . Kills . | . . . Allies Corrupted . | . . . Allies Melted . | . . . Intel | -11 -10 -9 ------- Run | Yrd Mat Mat Active Infowar (turns) 303 | . 207 96 ECM 303 | . 207 96 Robot Analysis Total . | . . . Derelict Logs Recovered . | . . . Drone Launches . | . . . Drone Recoveries . | . . . Exploration | -11 -10 -9 ------------- Run | Yrd Mat Mat Turns Passed 540 | 148 296 96 Spaces Moved 561 | 64 401 96 Core 42 | 42 . . Treads . | . . . Legs 104 | 21 79 4 Wheels 1 | 1 . . Hover . | . . . Flight 414 | . 322 92 Fastest Speed 37 | 50 37 37 Average Speed 66 | 174 54 43 Slowest Speed 250 | 250 190 190 Overloaded Moves . | . . . Propulsion Burnouts . | . . . Robots Hopped 2 | . . 2 Potential Cave-ins . | . . . Cave-ins Triggered . | . . . Exploration Rate (%) 25 | 4 61 10 Regions Visited 2 Branch Regions . Pre-discovered Areas . | . . . Known Exits Taken . | . . . Unknown Exits Taken 2 | 1 1 . Scrap Searched . | . . . Spaces Dug . | . . . Terrain Destroyed . | . . . Melee . | . . . Projectile . | . . . AOE . | . . . Terrain Rammed . | . . . Walls Destroyed . | . . . Machines Disabled . | . . . Actions | -11 -10 -9 --------- Run | Yrd Mat Mat Total 646 | 84 444 118 Wait 3 | . . 3 Move 555 | 63 400 92 Hop 2 | . . 2 Pick Up 5 | . 5 . Fast Attach 13 | 9 4 . Attach 3 | . . 3 Detach 5 | 2 3 . Swap 8 | . 8 . Drop 12 | 3 8 1 Fire 37 | 7 16 14 Melee . | . . . Ram . | . . . Kick 3 | . . 3 Crush . | . . . Escape Stasis . | . . . Rewire . | . . . Trap . | . . . Miscellaneous . | . . . Route ------- -11/Scrapyard -10/Materials (discovered 4 exits: *Mat x2 / *Min x2) -9/Materials History --------- Turn | Location | Event 14 | -11/Scrapyard | Discovered new exit (range 16) 149 | -11/Scrapyard | Entered Materials 280 | -10/Materials | Discovered new exit (range 11) 309 | -10/Materials | Build established: Mutant 321 | -10/Materials | Discovered new exit (range 4) 322 | -10/Materials | Identified exit to Mines 373 | -10/Materials | Discovered new exit (range 8) 445 | -10/Materials | Entered another Materials area 445 | -9/Materials | Evolved 2 slots: Utility x2 541 | -9/Materials | Self-destructed Last Messages --------------- 00512_ R-06 Scavenger collects Flight Unit. 00515_ Destroyed Flight Unit. 00516_ Electrolysis Chamber comes online. 00516_ R-06 Scavenger collects Flight Unit. 00518_ S-10 Pest destroyed. 00520_ R-06 Scavenger collects Lgt. Assault Rifle. 00521_ Acquired 19 matter. 00523_ R-06 Scavenger sends out distress signal. 00526_ S-10 Pest destroyed. 00527_ Lgt. Ion Engine destroyed. 00532_ Critical hit (Burn: +37). 00532_ Med. Laser destroyed. 00532_ Acquired 19 matter. 00536_ Kicked S-10 Pest. 00538_ Sml. Laser destroyed. 00539_ Flight Unit destroyed. 00539_ Kicked S-10 Pest. 00541_ Critical hit (Destroy). 00541_ Aluminum Leg destroyed. Map ----- +----------------------------------------------------+ | ?????????????????????????????????????????????????? | | ?????????????????????????????????????????????????? | | ?????????????????????????????????????????????????? | | ??????????????????? "T?????????????????????????? | | ??????????????????? ????????????????????????? | | ??????????????????? ???????????????????? | | ??????????????????? *! #??????????????????? | | ???????????????????# *! #??????????????????? | | ???????????????????# ! #??###########?????? | | ???????????????????# #??# #?????? | | ???????????????????# #??# #?????? | | ???????????????????# """ #??# #?????? | | ???????????????????# """ #??# #?????? | | ???????????????????# """ #??# #?????? | | ???????????????????# #??# #?????? | | ???????????????????# #??# #?????? | | ???????????????????# """ #??# #?????? | | ???????????????????# """ #######+######?????? | | ???????????????????# """ #???????? | | ???????????????????# #???????? | | ???????????????????# [% #???????? | | ???????????????????# #####Y########+#####??????? | | ???????????????????# ## *%[ # #??????? | | ???????????????????# ## [ # """ #??????? | | ???????????????????# s##* = # """ ] #??????? | | ???????????????????# u s@ # """ #??????? | | ???????????????????# ## # """ " #??????? | | ???????????????????# ##"" # """ T #??????? | | ???????????????????## ###"" # " #??????? | | ????????????????????# #?#"T # #??????? | | ????????????????????# #?#"" ###########??????? | | ?????????????########/###"" g #????????????????? | | ?????????# **! ## #????????????????? | | ?????????# *!! """ """ #######+#????????????????? | | ?????????????! """ """ ##?????# #????????????????? | | ?????????????? """ """ #??????# #????????????????? | | ?????????????? #??????# #????????????????? | | ??????????????T""" #??????# #????????????????? | | ???????????????#########??????# #????????????????? | | ??????????????????????????????# #????????????????? | | ?????????????????????????????? #????????????????? | | ?????????????????????????????? #????????????????? | | ?????????????????????????????# ????????????????? | | ?????????????????????????????+ ????????????????? | | ?????????????????????????????# ????????????????? | | ?????????????????????????????## ????????????????? | | ??????????????????????????????# ????????????????? | | ??????????????????????????????? ????????????????? | | ??????????????????????????????? ???????????????? | | ??????????????????????????????? ???????????????? | +----------------------------------------------------+ Best States ------------- Heat Dissipation 28 Energy Generation 10 Energy Capacity 250 Matter Stores 300 Matter Capacity 300 Sight Range 16 Terrain Scan Density 10 ECM Strength 1 Evasion (%) 62 Item Schematics ----------------- None Robot Schematics ------------------ None Fabricated ------------ Nothing Repaired ---------- Nothing Studied --------- None Alien Tech Used ----------------- None Achievements -------------- None Challenges ------------ None Game ------ Seed HeatIonBlaster Manual? 0 Play Time 00:09:18 Cumulative 38.7 hours Start 2026.08.30 @ 00:14:40 End 2026.08.30 @ 00:22:14 Sessions 1 Manual Loads 0 Difficulty Rogue Special Mode None Game No. 60 Rogue 60 Adventurer 0 Explorer 0 Win Type - Total 0 Types 0/0/0/0/0/0/0/0/0/0 Lore% 29 Gallery% 30 Achievement% 27 Wizard Run 0 Options --------- Layout 1 ASCII 0 Keyboard 0 Movement Mouse Keybinds 0 Fullscreen 2 Font 24/Smallcaps Map View 50x35 Zoom Use 0% Tactical HUD 1 Map Filters NONE Filters NONE Steam 1 RUN: 01568232-cde3-4c3b-90ce-fabf74ed25cb